Workbook

Sheet Vejledning
A1: Fane navn | B1: Forklaring
A2: Kender lønnen | B2: Benyttes hvis du kender bruttobeløbet, og vil kontrollere om Feriepenge-, SH/FF- og pensionbeløbet er korrekt. Felterne kender timerne og kender lønnen, giver et rettesnor for indtjeningen.
A3: Kender Pensionsbeløbet | B3: Her beregnes "baglæns" fra et brutto pensionsbeløb.
A4: Kender Feriepengebeløbet | B4: Her beregnes "baglæns" fra et brutto feriepengebeløb.
A5: Kender SH og FF beløbet | B5: Her beregnes "baglæns" fra et brutto SH og FFbeløb.
A6: Kender Feriepenge, SH og FF | B6: Her beregnes "baglæns" fra et brutto feriepenge-, SH-, og FFbeløb.
A7: Kender nettobeløbet | B7: Her beregnes "baglæns" fra et nettobeløb, det forudsætter at man kender trækprocent og lønmodtagerfradrag.
A8: Arbejdsdagsberegner | B8: Denne benyttet til at beregne antal arbejdsdage i en defineret periode mellem 2 datoer, og derefter modregne afholdt ferie og feriefridage, Og udfra den oplyste timeløn at beregne løn, feriepenge, SH og feriefridagsgodtgørelse samt pension i den definerede periode..

Sheet Lønseddel
B1: Enheder | D1: Sats | E1: I alt
A2: Løn | B2: 66.5 | D2: 275 | E2: =SUM(B2*D2) -> 18287.5
A4: Akkordoverskud | B4: 1 | D4: 9500 | E4: =SUM(B4*D4) -> 9500
A6: Overarbejde med 50% tillæg | B6: 8 | C6: 0.5 | D6: =SUM($D$2*C6) -> 137.5 | E6: =SUM(B6*D6) -> 1100
A7: Overarbejde med 100% tillæg | B7: 12 | C7: 1 | D7: =SUM($D$2*C7) -> 275 | E7: =SUM(B7*D7) -> 3300
A9: Sygeløn | B9: 7.5 | D9: 133 | E9: =SUM(B9*D9) -> 997.5
A11: Skurpenge | B11: 3 | D11: 57.5 | E11: =SUM(B11*D11) -> 172.5
A12: Skurpenge | B12: 2 | D12: 90 | E12: =SUM(B12*D12) -> 180
A14: Køretid | B14: 225 | D14: 0.75 | E14: =SUM(B14*D14) -> 168.75
A16: Skattepligtige kørepenge * | B16: 100 | D16: 2.1 | E16: =SUM(B16*D16) -> 210
B18: Sats
A19: Ferieberettiget løn i alt | C19: =SUM(E2:E14) -> 33706.25 | E19: =SUM(E2:E16) -> 33916.25
A21: Feriepenge | B21: 0.125 | C21: =SUM(C19*B21) -> 4213.28125
A23: SH-, og Feriefridagsgodtgørelse | B23: 0.069 | C23: =SUM(C19*B23) -> 2325.73125
A25: Pensionsgrundlag | C25: =SUM(C19:C23)+E16 -> 40455.2625
A27: Pension - Virksomhed | B27: 0.0815 | C27: =SUM(C25*B27) -> 3297.103894
A29: Pension - Medarbejder | B29: 0.04 | C29: =SUM(C25*B29) -> 1618.2105 | E29: =-SUM(C29) -> -1618.2105
A31: ATP - Medarbejder | E31: -90
C32: Sats
A33: Arbejdsmarkeds bidragspligtigt beløb | B33: =SUM(E19:E31) -> 32208.0395 | C33: 0.08 | E33: =-SUM(B33*C33) -> -2576.64316
A35: G-dage | B35: 3 | D35: 788 | E35: =SUM(B35*D35) -> 2364
A37: Skattefradrag | B37: -7500 | D37: =SUM(B33,E33,E35) -> 31995.39634
A39: A-Skat | C39: 0.42 | D39: =SUM(B37:D37) -> 24495.39634 | E39: =-SUM(D39*C39) -> -10288.06646
B41: Enheder | D41: Sats
A42: Skattefrie kørepenge | B42: 100 | D42: 2.1 | E42: =SUM(B42*D42) -> 210
A44: Skattefrie Diæter | B44: 3 | D44: 275 | E44: =SUM(B44*D44) -> 825
A46: Til udbetaling | E46: =SUM(E19:E42) -> 21917.32988
A48: * Skattepligtige kørepenge er pensionsberettigede, men ikke Ferie og SH berettigede.

Sheet Løn inkl. alle tillæg
A2: Lønnen er inkl. alle de overenskomstmæssige tillæg
A3: Gennemsnitslønnen fra det nationale websted www.workplacedenmark.dk for det pågældende arbejde i den pågældende region. (Eller den aftalte løn jf. §2), indsættes i kr. her:
F4: 295
D5: Pension | E5: 0.1015
D6: Løn eskl. pension | F6: =F4/(1+SUM(E5)) -> 267.8166137
D7: Særliglønopsparring | E7: 0.147
D8: Feriepenge | E8: 0.125
A9: Grundtimelønnen eksl. feriepenge, SH og pension udgør kr.: | E9: =F6/(1+SUM(E7,E8)) -> 210.5476523
A11: Denne løn er medarbejederns grundtimeløn, som skal udbetales ved hver lønperiode afslutning.
A13: Er der overarbejde eller andre variable tillæg, skal disse tillægges grundtimelønnen.
A16: Brutto betaling inkl. variable arbejdstidstillæg
A18: Medarbejderens samlede bruttobetaling inkl. variable arbejdstidstillæg (f.eks forskudtid, overarbejde) for den pågældende lønperiode, indsættes i kr. her:
F19: 28000
A22: Feriepengene udgør af periodens bruttobetaling kr.: | E22: =SUM($E$8) -> 0.125 | F22: =SUM(F19*E22) -> 3500
A23: Søgnehelligdagsbetalingen udgør af periodens bruttobetaling kr.: | E23: =SUM($E$7) -> 0.147 | F23: =SUM(F19*E23) -> 4116
A24: Pensionen udgør af periodens bruttobetaling kr.: | E24: =SUM($E$5) -> 0.1015 | F24: =SUM(E25*E24) -> 3615.024
E25: =SUM(F19+F22+F23) -> 35616
D26: Opsat løn der skal indbetales til 3F Feriekassen | E26: =SUM(F22+F23+F24) -> 11231.024 | F26: kr.
